bitfinex/quotes_BTCUSD_20251027
["timestamp","ask_amount","ask_price","bid_price","bid_amount"]
[1761576296612,0.48981901,114880.0,114870.0,0.6941274]
[1761576296973,0.48981901,114880.0,114870.0,0.0907274]
[1761576297182,0.48981901,114880.0,114870.0,0.6830874]
[1761576297344,0.48981901,114880.0,114870.0,0.6890874]
[1761576297560,0.48981901,114880.0,114870.0,0.6830874]
[1761576297946,0.48981901,114880.0,114870.0,0.6890874]
[1761576299383,0.66391371,114880.0,114870.0,0.6890874]
[1761576299630,0.48981901,114880.0,114870.0,0.6890874]
[1761576300475,0.48981901,114880.0,114870.0,0.0967274]
[1761576300670,0.48981901,114880.0,114870.0,0.6890474]
[1761576300846,0.48981901,114880.0,114870.0,0.0967274]
[1761576301015,0.48981901,114880.0,114870.0,0.6890474]
[1761576302304,1.218351,114880.0,114870.0,0.0967274]
[1761576302720,1.558351,114880.0,114870.0,0.0967274]
[1761576302955,3.558351,114880.0,114870.0,0.6890074]
[1761576303158,1.86190325,114880.0,114870.0,0.6830074]
[1761576303372,1.56641625,114880.0,114870.0,0.6830074]
[1761576303576,0.82981901,114880.0,114870.0,0.6860074]
[1761576303813,1.00491371,114880.0,114870.0,0.6860074]
[1761576305192,0.83081901,114880.0,114870.0,0.6860074]
[1761576305414,0.49081901,114880.0,114870.0,0.6860074]
[1761576305611,0.401,114880.0,114870.0,0.86011726]
[1761576305837,0.401,114880.0,114870.0,1.41455455]
[1761576306273,0.401,114880.0,114870.0,1.32403455]
[1761576306431,0.4,114880.0,114870.0,1.32103455]
[1761576306610,0.4,114880.0,114870.0,1.41085356]
[1761576306818,0.4,114880.0,114870.0,1.53685485]
[1761576308121,0.4,114880.0,114870.0,1.54985485]
[1761576308736,0.4,114880.0,114870.0,1.50685485]
[1761576308938,0.4,114890.0,114880.0,0.1740947]
[1761576309270,0.4,114890.0,114880.0,0.90317001]
[1761576310735,0.4,114890.0,114880.0,0.90417001]
[1761576310933,0.4,114890.0,114880.0,0.385915]
[1761576311312,0.4,114890.0,114880.0,1.09415229]
[1761576311492,0.40012693,114890.0,114880.0,1.09415229]
[1761576311719,0.40012693,114890.0,114880.0,1.10415229]
[1761576312105,0.40012693,114890.0,114880.0,1.09315229]
[1761576312304,0.40012693,114890.0,114880.0,1.09415229]
[1761576313255,0.40012693,114890.0,114880.0,1.09315229]
[1761576313699,0.40012693,114890.0,114880.0,1.10415229]
[1761576314211,0.40012693,114890.0,114880.0,1.09415229]
[1761576314412,0.40012693,114890.0,114880.0,1.10115229]
[1761576315130,0.40012693,114890.0,114880.0,1.93397001]
[1761576315348,0.40012693,114890.0,114880.0,1.97015229]
[1761576315561,0.40012693,114890.0,114880.0,1.93397001]
[1761576315761,0.40012693,114890.0,114880.0,1.97015229]
[1761576320773,0.40012693,114890.0,114880.0,1.075715]
[1761576321208,0.40012693,114890.0,114880.0,1.63015229]
[1761576321568,0.40012693,114890.0,114880.0,1.62915229]
[1761576321764,0.40012693,114890.0,114880.0,1.067715]
[1761576322133,0.40212693,114890.0,114880.0,1.067715]
[1761576323149,0.40212693,114890.0,114880.0,0.94171371]
[1761576323393,0.40012693,114890.0,114880.0,0.94171371]
[1761576323743,0.40212693,114890.0,114880.0,0.94171371]
[1761576323986,0.40012693,114890.0,114880.0,0.94171371]
[1761576324329,0.40012693,114890.0,114880.0,0.8518947]
[1761576324604,0.40412693,114890.0,114880.0,0.8518947]
[1761576324786,0.40412693,114890.0,114880.0,0.8568947]
[1761576325733,0.40412693,114890.0,114880.0,0.6828]
[1761576327799,0.40412693,114890.0,114880.0,0.8568947]
[1761576328217,0.40412693,114890.0,114880.0,0.6828]
[1761576329617,0.40412693,114890.0,114880.0,0.74585065]
[1761576330091,0.40412693,114890.0,114880.0,0.6828]
[1761576332434,0.40412693,114890.0,114880.0,0.8568947]
[1761576335087,0.40412693,114890.0,114880.0,1.54244416]
[1761576335299,0.40412693,114890.0,114880.0,1.57862644]
[1761576335512,0.40412693,114890.0,114880.0,1.48814644]
[1761576335725,0.40412693,114890.0,114880.0,1.57796545]
[1761576335919,0.40412693,114890.0,114880.0,1.58664584]
[1761576336144,0.40412693,114890.0,114880.0,1.57796545]
[1761576336758,0.40412693,114890.0,114880.0,1.79894446]
[1761576337311,0.40412693,114890.0,114880.0,1.80781406]
[1761576337722,0.40012693,114890.0,114880.0,1.80781406]
[1761576338160,0.40012693,114890.0,114880.0,1.80881406]
[1761576338496,0.40012693,114890.0,114880.0,1.80981406]
[1761576341229,0.40012693,114890.0,114880.0,1.80094446]
[1761576341436,0.40012693,114890.0,114880.0,1.115395]
[1761576341641,0.40012693,114890.0,114880.0,1.80094446]
[1761576342468,0.40012693,114890.0,114880.0,1.79994446]
[1761576342674,0.40012693,114890.0,114880.0,1.80094446]
[1761576343501,0.40012693,114890.0,114880.0,1.79994446]
[1761576343878,0.40012693,114890.0,114880.0,1.80094446]
[1761576344092,0.40012693,114890.0,114880.0,1.79994446]
[1761576344311,0.40012693,114890.0,114880.0,1.79894446]
[1761576344514,0.40012693,114890.0,114880.0,1.79994446]
[1761576344717,0.40012693,114890.0,114880.0,1.80094446]
[1761576345173,0.40012693,114890.0,114880.0,2.10026446]
[1761576358070,0.40012693,114890.0,114880.0,1.414715]
[1761576358264,0.40012693,114890.0,114880.0,2.10026446]
[1761576358481,0.40012693,114890.0,114880.0,1.50794446]
[1761576358695,0.40012693,114890.0,114880.0,2.09990446]
[1761576361143,0.40012693,114890.0,114880.0,1.074355]
[1761576362812,0.40012693,114890.0,114880.0,0.94835371]
[1761576363037,0.40012693,114890.0,114880.0,0.94735371]
[1761576363275,0.40012693,114890.0,114880.0,0.94635371]
[1761576364156,0.40212693,114890.0,114880.0,0.77225901]
[1761576364365,0.40212693,114890.0,114880.0,0.94635371]
[1761576364764,0.40212693,114890.0,114880.0,0.68244]
[1761576366343,0.40212693,114890.0,114880.0,0.8565347]
[1761576366544,0.40212693,114890.0,114880.0,1.24652803]
[1761576366873,0.40212693,114890.0,114880.0,0.68244]
[1761576367601,0.57620648,114890.0,114880.0,0.68244]
[1761576367762,0.96619981,114890.0,114880.0,0.68244]
[1761576368166,0.57620648,114890.0,114880.0,0.68244]
[1761576369605,0.40212693,114890.0,114880.0,0.68244]
[1761576369999,0.57620648,114890.0,114880.0,0.68244]
[1761576370588,0.66602549,114890.0,114880.0,0.68244]
[1761576370991,0.66402549,114890.0,114880.0,0.68244]
[1761576371213,0.67202549,114890.0,114880.0,0.68244]
[1761576371609,0.68062293,114890.0,114880.0,0.68244]
[1761576371829,1.07061626,114890.0,114880.0,0.68244]
[1761576372010,1.09673859,114890.0,114880.0,0.68244]
[1761576372831,0.70674526,114890.0,114880.0,0.68244]
[1761576373055,1.09673859,114890.0,114880.0,0.68244]
[1761576373678,1.43673859,114890.0,114880.0,0.68244]
[1761576374926,3.43673859,114890.0,114880.0,0.68244]
[1761576375151,3.4553308,114890.0,114880.0,0.6824]
[1761576375353,3.43673859,114890.0,114880.0,0.6824]
[1761576376423,3.43773859,114890.0,114880.0,0.6824]
[1761576376869,3.42973859,114890.0,114880.0,0.6824]
[1761576377091,3.4378,114890.0,114880.0,0.6824]
[1761576377324,3.45731242,114890.0,114880.0,0.6824]
[1761576378250,3.43873859,114890.0,114880.0,0.6824]
[1761576378660,2.38921259,114890.0,114880.0,0.6824]
[1761576379098,1.74651359,114890.0,114880.0,0.6824]
[1761576379322,1.43873859,114890.0,114880.0,0.6824]
[1761576381077,0.70874526,114890.0,114880.0,0.6824]
[1761576381739,0.70014782,114890.0,114880.0,0.6824]
[1761576382157,1.04014782,114890.0,114880.0,0.6824]
[1761576382362,1.43014115,114890.0,114880.0,0.6824]
[1761576382819,1.43905866,114890.0,114880.0,0.6824]
[1761576383568,2.99551366,114890.0,114880.0,0.6824]
[1761576383786,3.38597195,114890.0,114880.0,0.6824]
[1761576385186,3.39403107,114890.0,114880.0,0.6824]
[1761576386233,3.88211201,114890.0,114880.0,0.6826]
[1761576386459,3.90068414,114890.0,114880.0,0.6826]
[1761576386684,3.51046101,114890.0,114880.0,0.6826]
[1761576387081,2.60851516,114890.0,114880.0,0.6826]
[1761576388607,2.09242316,114890.0,114880.0,0.6826]
[1761576390986,2.09242316,114890.0,114880.0,0.59212]
[1761576391377,2.11567583,114890.0,114880.0,0.59212]
[1761576391945,2.09242316,114890.0,114880.0,0.59212]
[1761576392335,2.11567583,114890.0,114880.0,0.59212]
[1761576394363,2.20819955,114890.0,114880.0,0.59212]
[1761576394526,2.17921555,114890.0,114880.0,0.59212]
[1761576397251,2.21021911,114890.0,114880.0,0.59212]
[1761576400471,2.18696644,114890.0,114880.0,0.59212]
[1761576402244,2.23344283,114890.0,114880.0,0.59212]
[1761576402679,2.62366864,114890.0,114880.0,0.59212]
[1761576403081,2.23344283,114890.0,114880.0,0.59212]
[1761576404409,2.20243927,114890.0,114880.0,0.59212]
[1761576404855,2.2025335,114890.0,114880.0,0.59212]
[1761576406342,2.23364617,114890.0,114880.0,0.59212]
[1761576407971,2.62387198,114890.0,114880.0,0.59212]
[1761576408411,2.66005426,114890.0,114880.0,0.59212]
[1761576408652,2.66005426,114890.0,114870.0,0.0002074]
[1761576408653,2.55027698,114880.0,114870.0,0.0002074]
[1761576408884,2.55027698,114880.0,114870.0,0.5182874]
[1761576408885,4.28420377,114880.0,114870.0,0.5182874]
[1761576409105,4.32448219,114880.0,114870.0,0.5182874]
[1761576409328,4.32448219,114880.0,114870.0,0.51262763]
[1761576409584,5.33798872,114880.0,114870.0,0.50413751]
[1761576409811,5.40136758,114880.0,114870.0,0.50413751]
[1761576410248,5.33898872,114880.0,114870.0,0.50413751]
[1761576410472,5.33798872,114880.0,114870.0,0.50413751]
[1761576410897,2.57029212,114870.0,114860.0,0.0004]
[1761576411113,3.95031088,114870.0,114860.0,0.23024]
[1761576411332,3.96770088,114870.0,114860.0,0.23024]
[1761576411552,3.96770088,114870.0,114860.0,0.23044744]
[1761576411553,3.95031088,114870.0,114860.0,0.23044744]
[1761576411982,3.95031088,114870.0,114860.0,0.38388744]
[1761576412199,3.88860115,114870.0,114860.0,0.38388744]
[1761576412438,3.90414444,114870.0,114860.0,0.38388744]
[1761576412650,3.90914444,114870.0,114860.0,0.38388744]
[1761576412863,3.90917118,114870.0,114860.0,0.38388744]
[1761576413061,3.55794537,114870.0,114860.0,0.38688744]
[1761576413295,3.61512918,114870.0,114860.0,0.38688744]
[1761576413513,3.57350146,114870.0,114860.0,0.38688744]
[1761576414128,3.56350147,114870.0,114860.0,0.38688744]
[1761576414386,3.12826147,114870.0,114860.0,0.38688744]
[1761576414563,1.92813185,114870.0,114860.0,0.38388744]
[1761576414775,2.69858348,114870.0,114860.0,0.38388744]
[1761576414979,1.94613186,114870.0,114860.0,0.38488744]
[1761576415178,2.53491847,114870.0,114860.0,0.38488744]
[1761576415521,2.51991848,114870.0,114860.0,0.38488744]
[1761576415729,2.51991848,114870.0,114860.0,0.38388744]
[1761576415730,2.50391847,114870.0,114860.0,0.38388744]
[1761576415882,2.49391848,114870.0,114860.0,0.38388744]
[1761576416090,2.50591847,114870.0,114860.0,0.38388744]
[1761576416327,2.89614428,114870.0,114860.0,0.38388744]
[1761576416703,2.51919035,114870.0,114860.0,0.38388744]
[1761576416908,2.52919034,114870.0,114860.0,0.38388744]
[1761576417154,2.03715757,114870.0,114860.0,0.38388744]
[1761576417440,2.04715756,114870.0,114860.0,0.38388744]
[1761576418003,2.03715757,114870.0,114860.0,0.38388744]
[1761576418855,0.51903214,114850.0,114830.0,0.17857016]
[1761576419058,0.08981901,114840.0,114830.0,0.17857051]
[1761576419229,0.08981901,114840.0,114830.0,0.40841051]
[1761576419606,0.11595297,114840.0,114830.0,0.40841051]
[1761576419812,0.02613396,114840.0,114830.0,0.79863632]
[1761576420021,0.02613396,114840.0,114830.0,0.95222243]
[1761576420220,0.02613396,114840.0,114830.0,0.56199662]
[1761576421307,0.52794819,114840.0,114830.0,0.56199662]
[1761576421478,0.50617878,114840.0,114830.0,0.56799662]
[1761576421838,0.11595297,114840.0,114830.0,0.56799662]
[1761576422053,0.11595297,114840.0,114830.0,0.56199662]
[1761576422457,0.11695297,114840.0,114830.0,0.56799662]
[1761576422806,0.11695297,114840.0,114830.0,0.95822243]
[1761576423007,0.11695297,114840.0,114830.0,0.56799662]
[1761576424537,0.09081901,114840.0,114830.0,0.56799662]
[1761576425115,0.09081901,114840.0,114830.0,0.86747662]
[1761576425282,0.09081901,114840.0,114830.0,0.69330611]
[1761576425493,0.09081901,114840.0,114830.0,0.31002611]
[1761576425494,0.50281423,114840.0,114830.0,0.31002611]
[1761576425736,0.48104482,114840.0,114830.0,0.69330611]
[1761576426076,0.87127063,114840.0,114830.0,0.10106611]
[1761576426282,0.87127063,114840.0,114830.0,0.69330611]
[1761576426690,0.48104482,114840.0,114830.0,0.69330611]
[1761576426993,0.87127063,114840.0,114830.0,0.69330611]
[1761576427203,1.04542597,114840.0,114830.0,0.10106611]
[1761576427412,0.87127063,114840.0,114830.0,0.69330611]
[1761576427826,0.65520016,114840.0,114830.0,0.69330611]
[1761576428029,0.87127063,114840.0,114830.0,0.69330611]
[1761576428257,1.04542597,114840.0,114830.0,0.69330611]
[1761576428441,0.87127063,114840.0,114830.0,0.69330611]
[1761576428675,1.04542597,114840.0,114830.0,0.69330611]
[1761576429431,0.87127063,114840.0,114830.0,0.69330611]
[1761576429644,1.04542597,114840.0,114830.0,0.69330611]
[1761576430045,1.04542597,114840.0,114830.0,0.6939286]
[1761576430652,0.87127063,114840.0,114830.0,0.6939286]
[1761576430865,0.09081901,114840.0,114830.0,0.6939286]
[1761576431072,0.48104482,114840.0,114830.0,0.86809911]
[1761576431880,0.09081901,114840.0,114830.0,0.86809911]
[1761576435391,0.48104482,114840.0,114830.0,0.86809911]
[1761576435847,0.09081901,114840.0,114830.0,0.86809911]
[1761576436025,0.48104482,114840.0,114830.0,0.86809911]
[1761576436283,0.48104482,114840.0,114830.0,0.6939286]
[1761576436737,1.04542597,114840.0,114830.0,0.6939286]
[1761576437283,0.87127063,114840.0,114830.0,0.6939286]
[1761576440807,0.48104482,114840.0,114830.0,0.86809911]
[1761576441425,0.09081901,114840.0,114830.0,0.86809911]
[1761576445309,0.001,114840.0,114830.0,0.86809911]
[1761576455057,0.001,114840.0,114830.0,1.25844396]
[1761576455268,0.001,114840.0,114830.0,1.80091824]
[1761576455503,0.001,114840.0,114830.0,1.41057339]
[1761576455712,0.001,114840.0,114830.0,1.5003924]
[1761576456153,0.001,114840.0,114830.0,1.4943924]
[1761576456577,0.001,114840.0,114830.0,1.5103924]
[1761576456998,0.00489156,114850.0,114840.0,0.17415534]
[1761576457205,0.00489156,114850.0,114840.0,0.56450019]
[1761576457358,0.00489156,114850.0,114840.0,0.6543192]
[1761576458165,0.00489156,114850.0,114840.0,0.66304127]
[1761576458581,0.00489156,114850.0,114840.0,0.6633192]
[1761576458815,0.00489156,114850.0,114840.0,0.57350019]
[1761576459677,0.00489156,114850.0,114840.0,0.62922019]
[1761576459898,0.00489156,114850.0,114840.0,0.75522148]
[1761576460354,0.00489156,114850.0,114840.0,1.48556633]
[1761576461242,1e-08,114850.0,114840.0,1.48556633]
[1761576461424,1e-08,114850.0,114840.0,0.85713838]
[1761576461635,1e-08,114850.0,114840.0,1.63782808]
[1761576462369,1e-08,114850.0,114840.0,1.56638534]
[1761576462486,1e-08,114850.0,114840.0,1.56680029]
[1761576463015,1e-08,114850.0,114840.0,1.57780029]
[1761576463222,1e-08,114850.0,114840.0,1.96814514]
[1761576463439,1e-08,114850.0,114840.0,1.98814512]
[1761576463618,0.4,114890.0,114880.0,0.55027698]
[1761576463776,0.4,114890.0,114880.0,1.31195818]
[1761576464189,0.4,114890.0,114880.0,1.25627818]
[1761576464568,0.4,114890.0,114880.0,1.28239289]
[1761576465045,0.4,114890.0,114880.0,1.58183289]
[1761576465251,0.4,114890.0,114880.0,1.42124804]
[1761576465480,0.4,114890.0,114880.0,1.81159289]
[1761576465921,0.404,114890.0,114880.0,1.42843289]
[1761576466135,0.404,114890.0,114880.0,1.81155289]
[1761576468649,0.404,114890.0,114880.0,0.70316675]
[1761576468912,0.404,114890.0,114880.0,1.65939689]
[1761576470030,0.404,114890.0,114880.0,1.69557917]
[1761576470715,0.404,114890.0,114880.0,1.78539818]
[1761576473003,0.404,114890.0,114880.0,1.7492159]
[1761576473476,0.404,114890.0,114880.0,1.78539818]
[1761576474206,0.404,114890.0,114880.0,1.81151298]
[1761576474909,0.404,114890.0,114880.0,1.78527818]
[1761576475349,0.404,114890.0,114880.0,1.81139417]
[1761576484243,0.404,114890.0,114880.0,1.81239417]
[1761576484459,0.404,114890.0,114880.0,1.78627818]
[1761576484696,0.404,114890.0,114880.0,1.39593333]
[1761576484923,0.404,114890.0,114880.0,1.19439818]
[1761576485151,0.404,114890.0,114880.0,1.39589333]
[1761576485367,0.4,114890.0,114880.0,1.78623818]
[1761576485815,0.404,114890.0,114880.0,1.78623818]
[1761576486039,0.4,114890.0,114880.0,1.78623818]
[1761576486268,0.4,114890.0,114880.0,1.39589333]
[1761576486518,0.404,114890.0,114880.0,1.26889204]
[1761576486743,0.404,114890.0,114880.0,0.2646147]
[1761576486961,1.0663354,114890.0,114880.0,0.09052]
[1761576487186,1.4063354,114890.0,114880.0,0.52904]
[1761576487399,1.43661855,114890.0,114880.0,0.68236]
[1761576487609,1.4063354,114890.0,114880.0,0.68236]
[1761576488265,1.42498805,114890.0,114880.0,0.68236]
[1761576488483,1.42098805,114890.0,114880.0,0.68236]
[1761576488695,3.42098805,114890.0,114880.0,0.68236]
[1761576488908,3.45726606,114890.0,114880.0,0.68236]
[1761576489116,3.44426606,114890.0,114880.0,0.68236]
[1761576489353,2.82292605,114890.0,114880.0,0.68236]
[1761576489552,1.58267405,114890.0,114880.0,0.68236]
[1761576489802,1.89342898,114890.0,114880.0,0.68236]
[1761576490348,1.89442898,114890.0,114880.0,0.68236]
[1761576490672,1.2083292,114890.0,114880.0,0.68236]
[1761576490881,1.0456432,114890.0,114880.0,0.68236]
[1761576491300,1.0466432,114890.0,114880.0,0.68236]
[1761576491707,1.02799055,114890.0,114880.0,0.68236]
[1761576492386,1.71409033,114890.0,114880.0,0.68236]
[1761576495788,1.02799055,114890.0,114880.0,0.68236]
[1761576496588,1.05411536,114890.0,114880.0,0.68236]
[1761576498965,1.05411536,114890.0,114880.0,0.59184]
[1761576499170,1.74021514,114890.0,114880.0,0.59184]
[1761576502055,1.05411536,114890.0,114880.0,0.59184]
[1761576502626,0.88003581,114890.0,114880.0,0.59184]
[1761576502834,1.05411536,114890.0,114880.0,0.59184]
[1761576503677,1.05311536,114890.0,114880.0,0.59184]
[1761576504097,1.72421514,114890.0,114880.0,0.59184]
[1761576504303,1.73021514,114890.0,114880.0,0.59184]
[1761576504795,1.04411536,114890.0,114880.0,0.59184]
[1761576504990,1.73021514,114890.0,114880.0,0.59184]
[1761576505661,1.72421514,114890.0,114880.0,0.59184]
[1761576505983,1.60039895,114890.0,114880.0,0.59184]
[1761576506187,1.04611536,114890.0,114880.0,0.59184]
[1761576506404,1.59239895,114890.0,114880.0,0.59184]
[1761576506611,1.59339895,114890.0,114880.0,0.59184]
[1761576506789,1.60439895,114890.0,114880.0,0.59184]
[1761576506965,1.60339895,114890.0,114880.0,0.59184]
[1761576507402,1.60439895,114890.0,114880.0,0.59184]
[1761576508404,0.5140947,114880.0,114870.0,0.09052]
[1761576508604,1.16628929,114880.0,114870.0,0.68252]
[1761576509512,1.16728929,114880.0,114870.0,0.68252]
[1761576509971,1.19341942,114880.0,114870.0,0.68252]
[1761576510193,1.20141942,114880.0,114870.0,0.68252]
[1761576512151,0.64713583,114880.0,114870.0,0.68252]
[1761576512384,1.20141942,114880.0,114870.0,0.68252]
[1761576513274,0.64713583,114880.0,114870.0,0.68252]
[1761576515325,0.66582938,114880.0,114870.0,0.68252]
[1761576515774,0.66582938,114880.0,114870.0,0.592]
[1761576516224,0.49173468,114880.0,114870.0,0.76610986]
[1761576516453,0.63969925,114880.0,114870.0,0.592]
[1761576518196,1.19398284,114880.0,114870.0,0.592]
[1761576518402,1.19398284,114880.0,114870.0,0.59204]
[1761576518629,1.22011061,114880.0,114870.0,0.59204]
[1761576519479,1.22014912,114880.0,114870.0,0.59204]
[1761576520539,1.22880154,114880.0,114870.0,0.59204]
[1761576520750,0.67451795,114880.0,114870.0,0.59204]
[1761576520960,1.22880154,114880.0,114870.0,0.59204]
[1761576521616,0.67451795,114880.0,114870.0,0.59204]
[1761576522875,1.22880154,114880.0,114870.0,0.59204]
[1761576525833,1.20267377,114880.0,114870.0,0.59204]
[1761576527696,0.64839018,114880.0,114870.0,0.59204]
[1761576527925,1.20267377,114880.0,114870.0,0.59204]
[1761576529918,1.42880726,114880.0,114870.0,0.59204]
[1761576530509,1.0299463,114880.0,114870.0,0.76614986]
[1761576530883,0.8558516,114880.0,114870.0,0.76614986]
[1761576531121,1.0299463,114880.0,114870.0,0.76614986]
[1761576531470,1.0299463,114880.0,114870.0,0.59204]
[1761576533412,1.42015484,114880.0,114870.0,0.59204]
[1761576534254,0.17410986,114870.0,114860.0,0.09052]
[1761576534456,1.05247645,114870.0,114860.0,0.68256]
[1761576534664,1.41117,114870.0,114860.0,0.68256]
[1761576535060,1.43447364,114870.0,114860.0,0.68256]
[1761576535266,3.86086446,114870.0,114860.0,0.68256]
[1761576535467,3.88086444,114870.0,114860.0,0.5292]
[1761576535796,3.95741152,114870.0,114860.0,0.68256]
[1761576536003,5.20056849,114870.0,114860.0,0.59204]
[1761576536739,5.22908641,114870.0,114860.0,0.59204]
[1761576537356,4.44366933,114870.0,114860.0,0.59204]
[1761576537582,4.00785574,114870.0,114860.0,0.59204]
[1761576537837,3.3909372,114870.0,114860.0,0.59204]
[1761576538080,3.93564428,114870.0,114860.0,0.59204]
[1761576538322,3.90811293,114870.0,114860.0,0.59304]
[1761576538541,2.57030728,114860.0,114850.0,0.00020746]
[1761576538790,2.17415534,114840.0,114830.0,0.0044]
[1761576539013,2.84550548,114840.0,114830.0,0.06026611]
[1761576539229,2.84550548,114840.0,114830.0,0.06068112]
[1761576539459,3.25503694,114840.0,114830.0,0.06068112]
[1761576539707,3.25503694,114840.0,114830.0,0.11464112]
[1761576539708,3.29617282,114840.0,114830.0,0.11464112]
[1761576540160,3.27282363,114840.0,114830.0,0.11464112]
[1761576541005,3.27982363,114840.0,114830.0,0.11464112]
[1761576541227,3.26499106,114840.0,114830.0,0.11464112]
[1761576541646,2.47629098,114840.0,114830.0,0.11564112]
[1761576541854,2.35407706,114840.0,114830.0,0.11564112]
[1761576542487,2.34907706,114840.0,114830.0,0.11564112]
[1761576543517,2.31407706,114840.0,114830.0,0.11464112]
[1761576543949,2.34122056,114840.0,114830.0,0.12664112]
[1761576544152,2.34122056,114840.0,114830.0,0.11464112]
[1761576544353,2.29177374,114840.0,114830.0,0.11464112]
[1761576544560,2.29277374,114840.0,114830.0,0.12664112]
[1761576544769,2.31507706,114840.0,114830.0,0.12664112]
[1761576544977,2.31507706,114840.0,114830.0,0.30080112]
[1761576545215,2.31607706,114840.0,114830.0,0.30080112]
[1761576545428,2.31507706,114840.0,114830.0,0.28880112]
[1761576545633,2.31407706,114840.0,114830.0,0.28880112]
[1761576546246,2.29177374,114840.0,114830.0,0.28880112]
[1761576547073,2.29177374,114840.0,114830.0,0.29780112]
[1761576547472,2.29077374,114840.0,114830.0,0.29780112]
[1761576547909,2.29477374,114840.0,114830.0,0.29780112]
[1761576548712,2.29077374,114840.0,114830.0,0.29780112]
[1761576548935,2.29177374,114840.0,114830.0,0.29780112]
[1761576549816,2.31507706,114840.0,114830.0,0.29780112]
[1761576549999,2.29177374,114840.0,114830.0,0.28880112]
[1761576550410,2.29177374,114840.0,114830.0,0.29380112]
[1761576550411,2.29377374,114840.0,114830.0,0.29380112]
[1761576550831,2.29177374,114840.0,114830.0,0.28880112]
[1761576551195,2.29077374,114840.0,114830.0,0.28880112]
[1761576551405,2.29077374,114840.0,114830.0,0.31880112]
[1761576551406,2.29477374,114840.0,114830.0,0.31880112]
[1761576551716,2.28877375,114840.0,114830.0,0.31880112]
[1761576551925,2.18717676,114840.0,114830.0,0.31880112]
[1761576552088,1.70447976,114840.0,114830.0,0.31880112]
[1761576552341,1.26474593,114840.0,114830.0,0.31880112]
[1761576552540,1.59761543,114840.0,114830.0,0.31880112]
[1761576552749,0.26897435,114840.0,114830.0,0.31880112]
[1761576553161,0.26497435,114840.0,114830.0,0.28880112]
[1761576554044,0.26897435,114840.0,114830.0,0.32480112]
[1761576554286,0.82268143,114840.0,114830.0,0.32480112]
[1761576554752,0.82368143,114840.0,114830.0,0.32480112]
[1761576555317,0.26897435,114840.0,114830.0,0.32480112]
[1761576555507,0.82368143,114840.0,114830.0,0.32480112]
[1761576558588,0.26897435,114840.0,114830.0,0.32480112]
[1761576558850,0.09481901,114840.0,114830.0,0.49897163]
[1761576559299,0.005,114840.0,114830.0,0.53786323]
[1761576559517,0.005,114840.0,114830.0,0.49897163]
[1761576560542,0.17410986,114870.0,114850.0,0.17414018]
[1761576560745,0.08981901,114860.0,114850.0,0.17414018]
[1761576560951,0.08981901,114860.0,114850.0,0.38326018]
[1761576561150,0.48012743,114860.0,114850.0,0.38326018]
[1761576561570,0.08981901,114860.0,114850.0,0.38326018]
[1761576562062,0.08981901,114860.0,114850.0,0.39226018]
[1761576562267,0.73711054,114880.0,114860.0,0.17412355]
[1761576562522,0.26392887,114870.0,114860.0,0.17412355]
[1761576562747,0.26392887,114870.0,114860.0,0.32752355]
[1761576562952,0.08981901,114870.0,114860.0,0.32752355]
[1761576563309,0.2720196,114870.0,114860.0,0.1534]
[1761576563714,0.82633071,114870.0,114860.0,0.1534]
[1761576564101,0.2720196,114870.0,114860.0,0.1534]
[1761576564466,0.82633071,114870.0,114860.0,0.1534]
[1761576564667,0.82633071,114870.0,114850.0,0.22986018]
[1761576564668,0.82633071,114870.0,114850.0,0.17414018]
[1761576564801,0.2720196,114870.0,114860.0,0.59228]
[1761576565008,0.82633071,114870.0,114860.0,0.59228]
[1761576565224,0.81823998,114870.0,114860.0,0.59228]
[1761576565628,0.26392887,114870.0,114860.0,0.59228]
[1761576565811,0.81823998,114870.0,114860.0,0.59228]
[1761576567893,0.95020074,114870.0,114860.0,0.59228]
[1761576568556,0.95020074,114870.0,114860.0,0.76640502]
[1761576568557,0.08981901,114870.0,114860.0,0.76640502]
[1761576569261,0.26392887,114870.0,114860.0,0.76640502]
[1761576569933,0.08981901,114870.0,114860.0,0.76640502]
[1761576570563,0.26392887,114870.0,114860.0,0.59228]
[1761576571934,0.95020074,114870.0,114860.0,0.59228]
[1761576573451,0.95020074,114870.0,114860.0,0.59224]
[1761576578315,0.9582876,114870.0,114860.0,0.59224]
[1761576578976,0.77609088,114870.0,114860.0,0.59224]
[1761576579216,0.26392887,114870.0,114860.0,0.59224]
[1761576580096,0.95020074,114870.0,114860.0,0.68276]
[1761576580770,0.95829526,114870.0,114860.0,0.68276]
[1761576584323,1.29829526,114870.0,114860.0,0.68264]
[1761576584545,1.31697713,114870.0,114860.0,0.68264]
[1761576593041,2.25283345,114870.0,114860.0,0.68264]
[1761576593709,2.25283345,114870.0,114860.0,0.59212]
[1761576594145,2.28396934,114870.0,114860.0,0.59212]
[1761576596559,1.96089334,114870.0,114860.0,0.59212]
[1761576596767,1.84631034,114870.0,114860.0,0.59212]
[1761576597189,1.64938534,114870.0,114860.0,0.59212]
[1761576597430,1.61824945,114870.0,114860.0,0.59212]
[1761576597651,1.34028045,114870.0,114860.0,0.59212]
[1761576597875,1.31697713,114870.0,114860.0,0.59212]
[1761576602273,1.29829526,114870.0,114860.0,0.59212]
[1761576602501,1.31702431,114870.0,114860.0,0.59212]
[1761576604616,1.55196362,114870.0,114860.0,0.59212]
[1761576607436,1.58309951,114870.0,114860.0,0.59212]
[1761576607692,0.89682764,114870.0,114860.0,0.59212]
[1761576607902,1.58309951,114870.0,114860.0,0.59212]
[1761576608364,1.37157151,114870.0,114860.0,0.59212]
[1761576608575,1.47329851,114870.0,114860.0,0.59212]
[1761576609002,1.44216262,114870.0,114860.0,0.59212]
[1761576611345,0.97702431,114870.0,114860.0,0.59212]
[1761576611791,0.11664258,114870.0,114860.0,0.76624502]
[1761576612013,0.08981901,114870.0,114860.0,0.76624502]
[1761576612259,0.20153525,114880.0,114870.0,0.17410986]
[1761576612260,0.01873582,114880.0,114870.0,0.17410986]
[1761576612483,0.27204585,114880.0,114870.0,0.17410986]
[1761576612737,0.97705354,114880.0,114860.0,0.76624502]
[1761576613605,0.97805312,114880.0,114860.0,0.76624502]
[1761576614059,0.97705312,114880.0,114860.0,0.76624502]
[1761576614276,0.9583173,114880.0,114860.0,0.76624502]
[1761576615852,0.86038173,114870.0,114860.0,0.85676502]
[1761576616081,0.08981901,114870.0,114860.0,0.85676502]
[1761576616504,0.26392887,114870.0,114860.0,0.85676502]
[1761576616730,0.08981901,114870.0,114860.0,0.85676502]
[1761576618114,0.08981901,114870.0,114860.0,0.94658403]
[1761576618331,0.08981901,114870.0,114860.0,0.85676502]
[1761576619201,0.58278372,114890.0,114870.0,0.17409537]